fUSD/lending_fUSD_20241029
["ID","MTS","AMOUNT","RATE_DAILY","PERIOD"]
[340988625,1730216944297,-405.26889,0.00015749,2]
[340988626,1730216944319,-394.73111,0.000158,5]
[340988627,1730216944631,-405.26889,0.000158,5]
[340988628,1730216944653,-300.0,0.00015899,2]
[340988629,1730216944676,-94.73111,0.00015899,2]
[340988630,1730216944973,-205.26889,0.00015899,2]
[340988631,1730216944996,-594.73111,0.000159,5]
[340988632,1730216945409,-800.0,0.000159,5]
[340988633,1730216945786,-305.26889,0.000159,5]
[340988634,1730216945807,-494.73111,0.000159,2]
[340988635,1730216946195,-800.0,0.000159,2]
[340988636,1730216946647,-800.0,0.000159,2]
[340988637,1730216947820,-800.0,0.000159,2]
[340988638,1730216949354,-800.0,0.000159,2]
[340988652,1730217031799,-1445.358048,0.000159,2]
[340988654,1730217031811,-318.8752776,0.000159,2]
[340988655,1730217032008,-2867.77356906,0.000159,2]
[340988656,1730217032019,-361.9,0.00015938,2]
[340988657,1730217032028,-41.97813554,0.00015945,2]
[340988658,1730217032040,-129.1007866,0.00015945,2]
[340988659,1730217032050,-166.00869763,0.00015945,2]
[340988660,1730217032059,-66.39051577,0.00015945,2]
[340988661,1730217032072,-4851.66649758,0.00015945,2]
[340988662,1730217032081,-3074.99,0.00015972,2]
[340988664,1730217032091,-1861.25,0.00015972,2]
[340988666,1730217032100,-391.79197861,0.00015973,2]
[340988668,1730217032110,-159.78777654,0.00015973,2]
[340988670,1730217032120,-653.92,0.00015973,2]
[340988671,1730217032129,-214.4953132,0.0001599,2]
[340988672,1730217032138,-1034.884,0.00015999,2]
[340988673,1730217032148,-997.1478,0.00015999,2]
[340988674,1730217032158,-151.0,0.00015999,2]
[340988675,1730217032167,-500.0,0.00015999,2]
[340988676,1730217032176,-500.0,0.00015999,2]
[340988677,1730217032189,-170.831,0.00015999,2]
[340988678,1730217032199,-663027.02518895,0.00016,2]
[340988679,1730217032214,-108418.753125,0.00016,2]
[340988680,1730217032226,-14407.0,0.00016,2]
[340988681,1730217032237,-1809.08299859,0.00016,2]
[340988682,1730217032249,-694154.02233959,0.00016,2]
[340988683,1730217032259,-1301.0613774,0.00016045,2]
[340988684,1730217032269,-250.0,0.00016145,2]
[340988685,1730217032279,-1111.12,0.00016175,2]
[340988686,1730217032289,-595.21,0.00016491,2]
[340988687,1730217032298,-23900.0,0.00016587,2]
[340988688,1730217032309,-200.0,0.00016589,2]
[340988689,1730217032319,-361.9,0.00016735,2]
[340988690,1730217032328,-726.62,0.00016945,2]
[340988691,1730217032338,-820.49,0.00017069,2]
[340988692,1730217032347,-350.1,0.00017217,2]
[340988693,1730217032356,-155.61,0.00017361,2]
[340988694,1730217032367,-186.86,0.00017497,2]
[340988695,1730217032379,-361.9,0.00017532,2]
[340988696,1730217032388,-165.4,0.00017698,2]
[340988697,1730217032398,-150.41,0.00017871,2]
[340988698,1730217032407,-361.9,0.00018328,2]
[340988699,1730217032417,-157.83,0.00018518,2]
[340988700,1730217032426,-165.36,0.00018634,2]
[340988701,1730217032441,-8305.12,0.00018666,2]
[340988702,1730217032450,-595.21,0.00018755,2]
[340988703,1730217032460,-4918.0570133,0.00018881,2]
[340988704,1730217032470,-361.9,0.00019125,2]
[340988705,1730217032480,-165.36,0.00019877,2]
[340988706,1730217032490,-79964.42658621,0.0002,2]
[340988707,1730217032499,-267.08,0.00020462,2]
[340988708,1730217032510,-267.08,0.00020468,2]
[340988709,1730217032520,-267.08,0.00020473,2]
[340988710,1730217032530,-267.08,0.00020478,2]
[340988711,1730217032539,-267.08,0.00020484,2]
[340988712,1730217032549,-267.08,0.00020489,2]
[340988713,1730217032559,-267.08,0.00020495,2]
[340988714,1730217032568,-267.08,0.000205,2]
[340988715,1730217032578,-267.08,0.00020505,2]
[340988716,1730217032589,-267.08,0.00020511,2]
[340988717,1730217032599,-267.08,0.00020516,2]
[340988718,1730217032609,-267.08,0.00020522,2]
[340988719,1730217032619,-267.08,0.00020527,2]
[340988720,1730217032628,-267.08,0.00020532,2]
[340988721,1730217032641,-267.08,0.00020538,2]
[340988722,1730217032651,-267.08,0.00020543,2]
[340988723,1730217032661,-267.08,0.00020549,2]
[340988724,1730217032670,-267.08,0.00020554,2]
[340988725,1730217032680,-267.08,0.00020559,2]
[340988726,1730217032690,-267.08,0.00020565,2]
[340988727,1730217032701,-595.21,0.00021019,2]
[340988728,1730217032715,-165.36,0.00021119,2]
[340988729,1730217032731,-1000.0,0.0002137,2]
[340988730,1730217032741,-4253.06,0.0002137,2]
[340988731,1730217032751,-250.0,0.00021772,2]
[340988732,1730217032761,-4918.0570133,0.00021816,2]
[340988733,1730217032771,-186.86,0.00021871,2]
[340988734,1730217032781,-165.36,0.00022361,2]
[340988735,1730217032792,-166.00869762,0.00023263,2]
[340988736,1730217032801,-595.21,0.00023283,2]
[340988737,1730217032810,-167.0,0.00023732,2]
[340988738,1730217032820,-820.49,0.00023897,2]
[340988739,1730217032833,-1000.0,0.00024041,2]
[340988740,1730217032843,-606.28,0.00024658,2]
[340988741,1730217032853,-4918.0570133,0.00024752,2]
[340988742,1730217032862,-159.12,0.00024877,30]
[340988743,1730217032871,-595.21,0.00025546,2]
[340988744,1730217032881,-186.86,0.00026245,120]
[340988745,1730217032891,-1000.0,0.00026712,2]
[340988746,1730217032900,-152.65344949,0.00027,2]
[340988747,1730217032910,-500.0,0.0002701,30]
[340988748,1730217032919,-500.0,0.0002701,30]
[340988749,1730217032941,-250.0,0.00027397,2]
[340988750,1730217032954,-150.0,0.00027397,7]
[340988751,1730217032965,-160.23,0.00027507,2]
[340988752,1730217032978,-167.0,0.00027649,2]
[340988753,1730217032988,-4918.0570133,0.00027687,2]
[340988754,1730217032997,-595.21,0.0002781,2]
[340988755,1730217033007,-1000.0,0.00029383,2]
[340988756,1730217033017,-247.0,0.000296,3]
[340988757,1730217033027,-966.0,0.000299,3]
[340988758,1730217033036,-6196.860053,0.0003,30]
[340988759,1730217033046,-280.957,0.0003,2]
[340988760,1730217033057,-13964.0445,0.00030013,2]
[340988761,1730217033067,-595.21,0.00030074,2]
[340988762,1730217033079,-167.44,0.0003019,2]
[340988763,1730217033091,-166.00869762,0.00030582,2]
[340988764,1730217033101,-4918.0570133,0.00030623,15]
[340988765,1730217033110,-1000.0,0.00032054,2]
[340988766,1730217033120,-595.21,0.00032338,2]
[340988767,1730217033130,-500.0,0.00032876,2]
[340988768,1730217033140,-2600.0,0.000329,12]
[340988769,1730217033149,-69935.44595705,0.00033,2]
[340988770,1730217033159,-150.0,0.00034548,10]
[340988771,1730217033170,-1000.0,0.000346,7]
[340988772,1730217033180,-595.21,0.00034602,2]
[340988773,1730217033192,-159.12,0.00034696,120]
[340988774,1730217033203,-1000.0,0.000359,7]
[340988775,1730217033213,-595.21,0.00036866,2]
[340988776,1730217033224,-1000.0,0.000372,7]
[340988777,1730217033233,-500.0,0.00037548,10]
[340988778,1730217033243,-500.0,0.00037548,10]
[340988779,1730217033254,-500.0,0.00037548,10]
[340988780,1730217033263,-841.10300207,0.00037548,10]
[340988781,1730217033273,-3400.0,0.000376,13]
[340988782,1730217033281,-280.957,0.00037648,2]
[340988783,1730217033290,-386.4865,0.00037648,2]
[340988784,1730217033301,-4300.0,0.000377,13]
[340988785,1730217033310,-450.0,0.00037779,2]
[340988786,1730217033320,-1247.0,0.00037779,2]
[340988787,1730217033329,-686.872,0.00037779,2]
[340988788,1730217033339,-560.231,0.00037779,2]
[340988789,1730217033349,-1982.0,0.00037779,2]
[340988790,1730217033359,-3365.0,0.00037779,2]
[340988791,1730217033368,-1913.0,0.00037779,2]
[340988792,1730217033379,-1253.0,0.00037779,2]
[340988793,1730217033390,-2205.0,0.00037779,2]
[340988794,1730217033400,-811.0,0.00037779,2]
[340988795,1730217033409,-814.0,0.00037779,2]
[340988796,1730217033419,-220.0,0.00037779,2]
[340988797,1730217033430,-273.254,0.00037779,2]
[340988798,1730217033440,-13562.0,0.00037779,2]
[340988799,1730217033449,-164.511,0.00037779,2]
[340988800,1730217033459,-281.45,0.00037779,2]
[340988801,1730217033468,-200.0,0.00037779,2]
[340988802,1730217033478,-214.26,0.00037779,2]
[340988803,1730217033488,-150.0,0.00037779,2]
[340988804,1730217033498,-155.421,0.00037779,2]
[340988805,1730217033508,-5898.0,0.00037779,2]
[340988806,1730217033518,-1153.0,0.00037779,2]
[340988807,1730217033528,-254.337,0.00037779,2]
[340988808,1730217033538,-800.0,0.000378,13]
[340988809,1730217033548,-219.5757474,0.000379,2]
[340988810,1730217033556,-800.0,0.000379,13]
[340988811,1730217033566,-22019.81950734,0.000379,2]
[340988812,1730217033575,-166.00869762,0.000379,2]
[340988813,1730217033584,-178.42946112,0.000379,2]
[340988814,1730217033594,-500.0,0.00037973,5]
[340988815,1730217033604,-209.74099959,0.00037973,5]
[340988816,1730217033614,-500.0,0.00037973,2]
[340988817,1730217033624,-214.4953132,0.0003799,2]
[340988818,1730217033634,-1570.66490583,0.00037997,14]
[340988819,1730217033644,-986.61734434,0.00037997,14]
[340988820,1730217033654,-48583.34300607,0.00037997,14]
[340988821,1730217033663,-1758928.76785036,0.00038,30]
[340988826,1730217037856,-506.219,0.00033558,15]
[340988827,1730217037952,-389.37,0.00033558,15]
[340988829,1730217038275,-840.98531914,0.00033558,15]
[340988830,1730217038313,-0.08717445,0.00033558,15]
[340988831,1730217038324,-301.3149563,0.00033558,15]
[340988832,1730217038336,-2880.08056341,0.00033558,15]
[340988833,1730217038345,-72228.0,0.00037,30]
[340988834,1730217038355,-250.0,0.00037779,2]
[340988835,1730217038364,-164.554,0.00037779,2]
[340988836,1730217038374,-1086.0,0.00037779,2]
[340988837,1730217038384,-432.12443236,0.000379,2]
[340988838,1730217038393,-64205.59096659,0.00038,30]
[340989043,1730217040350,-727.47673416,0.00038,30]
[340989054,1730217040363,-268.72827191,0.00038,30]
[340989056,1730217040470,-1500.76923277,0.00038,30]
[340989289,1730217042846,-4918.0570133,0.00036494,15]
[340989291,1730217042856,-7219.85495757,0.00038,30]
[340989293,1730217042868,-9130.11819613,0.00038,30]
[340989296,1730217042880,-1735.03004915,0.00038,30]
[340989302,1730217042928,-2969.21468283,0.00038,30]
[340989336,1730217043257,-1446.70764,0.00038,30]
[340989496,1730217046128,-461.55022229,0.00038,30]
[340989497,1730217046143,-57835.2,0.00038,30]
[340989498,1730217046156,-36095.5,0.00038,30]
[340989499,1730217046208,-1642698.79117523,0.00038,30]
[340989500,1730217046223,-534003.64350568,0.00038,30]
[340989513,1730217046235,-5950.38184686,0.00038,30]
[340989634,1730217249762,-156.93,0.00015342,2]
[340989635,1730217256944,-400.0,0.00016219,2]
[340989648,1730217858705,150.0,0.00015,2]
[340989649,1730217858726,150.0,0.00015,2]
[340989650,1730217858747,150.0,0.00015,2]
[340989651,1730217858767,100.0,0.00015,2]
[340989653,1730217940157,-154.7,0.00015342,2]
[340989654,1730217940178,-150.0,0.00016219,2]
[340989655,1730217940198,-600.0,0.00017,2]
[340989656,1730217940218,-650.0,0.00019,2]
[340989657,1730217940239,-300.0,0.00019451,2]
[340989658,1730217940260,-3255.17,0.00019452,2]
[340989659,1730217940282,-700.0,0.00021,2]
[340989660,1730217940304,-420.0,0.00021192,2]
[340989661,1730217940324,-339.214607,0.00022885,2]
[340989662,1730217940344,-750.0,0.00023,2]
[340989663,1730217940365,-587.0,0.00023088,2]
[340989664,1730217940386,-800.0,0.00025,2]
[340989665,1730217940407,-823.0,0.00025155,2]
[340989666,1730217940429,-850.0,0.00027,2]
[340989667,1730217940451,-220.0,0.00027406,2]
[340989668,1730217940471,-180.07,0.00028971,2]
[340989669,1730217940491,-900.0,0.00029,2]
[340989670,1730217940511,-283.86025,0.0002932,2]
[340989671,1730217940531,-300.0,0.0003,20]
[340989672,1730217940553,-151.0,0.0003,120]
[340989673,1730217940575,-950.0,0.00031,2]
[340989674,1730217940596,-1000.0,0.00033,2]
[340989675,1730217940618,-410.65,0.0003396,2]
[340989676,1730217940639,-1050.0,0.00035,2]
[340989677,1730217940660,-170.3,0.00035272,120]
[340989678,1730217940683,-250.0,0.00035377,2]
[340989679,1730217940705,-23900.0,0.00035476,2]
[340989680,1730217940728,-888.15,0.00035596,2]
[340989681,1730217940751,-156.93,0.00035616,2]
[340989682,1730217940771,-200.0,0.00035782,2]
[340989683,1730217940790,-1170.0,0.000361,7]
[340989684,1730217940810,-150.0,0.00036121,7]
[340989685,1730217940831,-250.0,0.00036139,120]
[340989686,1730217940850,-158.7,0.00036142,120]
[340989687,1730217940870,-1000.0,0.0003617,2]
[340989688,1730217940890,-410.65,0.00036223,2]
[340989689,1730217940912,-300.0,0.00036774,2]
[340989690,1730217940931,-564.86,0.00036774,2]
[340989691,1730217940957,-564.86,0.00036784,2]
[340989692,1730217940978,-564.86,0.00036794,2]
[340989693,1730217940999,-564.86,0.00036803,2]
[340989694,1730217941020,-564.86,0.00036813,2]
[340989695,1730217941042,-564.86,0.00036823,2]
[340989696,1730217941062,-564.86,0.00036832,2]
[340989697,1730217941083,-1198.47,0.00036842,46]
[340989698,1730217941104,-564.86,0.00036842,2]
[340989699,1730217941126,-564.86,0.00036852,2]
[340989700,1730217941147,-564.86,0.00036861,2]
[340989701,1730217941170,-564.86,0.00036871,2]
[340989702,1730217941191,-564.86,0.00036881,2]
[340989703,1730217941213,-564.86,0.0003689,2]
[340989704,1730217941233,-564.86,0.000369,2]
[340989705,1730217941255,-564.86,0.0003691,2]
[340989706,1730217941276,-564.86,0.00036919,2]
[340989707,1730217941297,-564.86,0.00036929,2]
[340989708,1730217941317,-564.86,0.00036939,2]
[340989709,1730217941338,-564.86,0.00036948,2]
[340989710,1730217941358,-564.86,0.00036958,2]
[340989711,1730217941378,-1100.0,0.00037,2]
[340989712,1730217941398,-168.8,0.000371,2]
[340989713,1730217941418,-250.0,0.00037192,2]
[340989714,1730217941437,-283.86025,0.00037594,2]
[340989715,1730217941459,-313.514,0.00037642,2]
[340989716,1730217941479,-925.513,0.00037642,2]
[340989717,1730217941499,-3905.730267,0.0003788,7]
[340989718,1730217948099,-4806.43903063,0.0003788,7]
[340989719,1730217948119,-732.99598828,0.000379,2]
[340989720,1730217948139,-159.59547406,0.000379,11]
[340989721,1730217948160,-156.17979314,0.000379,2]
[340989722,1730217948181,-874.78261811,0.000379,2]
[340989723,1730217948202,-178.42946112,0.000379,2]
[340989724,1730217948222,-14679.87967156,0.000379,2]
[340989725,1730217948242,-503.99294869,0.00037973,5]
[340989726,1730217948264,-500.0,0.00037999,15]
[340989727,1730217948285,-398.43385859,0.00037999,15]
[340989728,1730217948306,-188.89974189,0.00037999,15]
[340989729,1730217948328,-600.0,0.00037999,15]
[340989730,1730217948349,-10096.37534803,0.00038,30]
[340989747,1730218231881,-150.0,0.00015934,2]
[340989748,1730218231891,-180.07,0.00031435,2]
[340989749,1730218231900,-1116.65,0.00037392,2]
[340989750,1730218231933,-276.97190859,0.00037392,2]
[340989751,1730218231943,-92.58429141,0.00037437,2]
[340989752,1730218231955,-1301.03761717,0.00037437,2]
[340989753,1730218231964,-1393.62190858,0.00037482,2]
[340989754,1730218231973,-1000.0,0.00037492,2]
[340989755,1730218231983,-150.0,0.00037582,7]
[340989756,1730218231992,-1456.28728702,0.0003762,2]
[340989757,1730218232003,-362.9244,0.0003762,2]
[340989758,1730218232014,-9836.78831298,0.0003762,2]
[340989759,1730218232023,-444.07,0.00037669,2]
[340989760,1730218232032,-250.0,0.00037669,2]
[340989761,1730218232042,-201.86583754,0.0003781,2]
[340989762,1730218232052,-806.26429779,0.000379,15]
[340989763,1730218232093,-932.88436381,0.000379,15]
[340989764,1730218232102,-583.18841206,0.000379,2]
[340989765,1730218232111,-401.53622453,0.000379,2]
[340989766,1730218232120,-9786.5864477,0.000379,2]
[340989767,1730218232129,-500.0,0.00037973,2]
[340989768,1730218232141,-159.94912047,0.00037973,5]
[340989769,1730218232151,-14261.36011983,0.00038,30]
[340989792,1730218237933,-982.99497,0.00038,30]
[340989793,1730218237945,-130217.87574846,0.00038,30]
[340989794,1730218237956,-1502.49,0.00038,30]
[340989795,1730218237989,-925.94851767,0.00038,30]
[340989796,1730218238000,-51167.55396423,0.00038,30]
[340989797,1730218238059,-3325.28610006,0.00038,30]
[340989798,1730218238071,-1804.9,0.00038,30]
[340989799,1730218238145,-253.08902791,0.00038,30]
[340989800,1730218238158,-722.71,0.00038,30]
[340989801,1730218238169,-901.75,0.00038,30]
[340989802,1730218238355,-7246.2,0.00038,30]
[340989806,1730218239949,-1027.3687775,0.00038,30]
[340989807,1730218239961,-662.94059947,0.00038,30]
[340989808,1730218240002,-921.6879966,0.00038,30]
[340989809,1730218240111,-1449.26,0.00038,30]
[340989810,1730218240218,-366.56157586,0.00038,30]
[340989832,1730218242860,-403.69,0.0003799,10]
[340989834,1730218242870,-14088.91,0.00038,30]
[340989835,1730218243019,-4811.49471928,0.00038,30]
[340989836,1730218243140,-1.07435214,0.00038,30]
[340990110,1730218246032,-14481.74322934,0.00038,30]
[340990115,1730218246090,-3619.91830189,0.00038,30]
[340990124,1730218246196,-6818.0903452,0.00038,30]
[340990130,1730218246251,-2668.46334556,0.00038,30]
[340990132,1730218246265,-457629.99119997,0.00038,30]
[340991522,1730219058825,-158.5,0.00015342,2]
[340991523,1730219058848,-150.0,0.00015635,2]
[340991524,1730219058870,-7236.65,0.000159,2]
[340991532,1730219108084,683233.81783488,0.00016,2]
[340991533,1730219130362,6157.17770528,0.000101,2]
[340991534,1730219164423,161.54912863,9e-05,2]
[340991535,1730219169860,900.15094453,0.0001,2]
[340991551,1730219244701,205.0,9.8e-05,2]
[340991553,1730219249028,246.69232921,0.000101,2]
[340991554,1730219286182,988.21287907,0.0001,2]
[340991555,1730219289312,300562.2491784,0.00015,2]
[340991556,1730219289338,800.0,0.00015,2]
[340991557,1730219289358,800.0,0.00015,2]
[340991558,1730219289383,800.0,0.00015,2]
[340991559,1730219289404,800.0,0.00015,2]
[340991560,1730219289424,500.0,0.00015,2]
[340991561,1730219289448,400.0,0.00015,2]
[340991562,1730219289474,2085255.79120567,0.00015,2]
[340991565,1730219307871,150.0,0.000125,2]
[340991566,1730219319421,366.72476236,0.000129,2]
[340991567,1730219325509,212.44942947,0.0001,2]
[340991584,1730219432033,-1950.18429656,0.00021,2]
[340991585,1730219432043,-519.5562,0.000246,2]
[340991586,1730219432053,-158.5,0.000247,2]
[340991587,1730219432062,-1330.61335981,0.00027,7]
[340991588,1730219432075,-25672.8246883,0.00027,7]
[340991589,1730219432091,-413.50007875,0.00027,7]
[340991590,1730219432103,-370.3161,0.00027,7]
[340991591,1730219432151,-509.209386,0.00027,7]
[340991592,1730219432225,-14570.02965777,0.00027,7]
[340991619,1730219438145,-310263.56900738,0.00027,7]
[340991620,1730219438160,-1620.94571182,0.000294,15]
[340991621,1730219438172,-5207.92982692,0.000294,2]
[340991622,1730219438184,-935.0,0.000295,3]
[340991623,1730219438194,-10473.0335,0.0003,2]
[340991624,1730219438204,-329.71,0.0003,20]
[340991625,1730219438215,-1620.94571182,0.00030344,15]
[340991626,1730219438224,-1620.94571182,0.00031289,15]
[340991627,1730219438236,-2061.0,0.00031985,2]
[340991628,1730219438245,-1620.94571182,0.00032233,15]
[340991629,1730219438254,-1620.94571182,0.00033178,15]
[340991630,1730219438263,-366.75,0.00034057,2]
[340991631,1730219438272,-158.5,0.00034057,2]
[340991632,1730219438282,-1620.94571182,0.00034122,15]
[340991633,1730219438291,-250.0,0.00034979,120]
[340991634,1730219438300,-1620.94571182,0.00035067,15]
[340991635,1730219438310,-200.0,0.00035084,2]
[340991636,1730219438320,-170.3,0.00035145,120]
[340991637,1730219438331,-958.776,0.00035848,43]
[340991638,1730219438340,-1620.94571182,0.00036011,15]
[340991639,1730219438349,-222.03,0.00036156,2]
[340991640,1730219438358,-150.0,0.00036232,7]
[340991641,1730219438368,-250.0,0.00036266,2]
[340991642,1730219438379,-23900.0,0.00036327,2]
[340991643,1730219438389,-3108.0,0.00036502,2]
[340991644,1730219438399,-168.8,0.0003651,2]
[340991645,1730219438409,-1000.0,0.0003653,2]
[340991646,1730219438421,-1620.94571182,0.00036956,15]
[340991647,1730219438431,-160.84,0.00037455,2]
[340991648,1730219438441,-160.84,0.00037481,2]
[340991649,1730219438450,-160.84,0.00037508,2]
[340991650,1730219438459,-12140.79316463,0.00037525,3]
[340991651,1730219438470,-160.84,0.00037535,2]
[340991652,1730219438481,-160.84,0.00037562,2]
[340991653,1730219438491,-160.84,0.00037588,2]
[340991654,1730219438501,-160.84,0.00037615,2]
[340991655,1730219438510,-668.94694944,0.0003763,2]
[340991656,1730219438519,-160.84,0.00037642,2]
[340991657,1730219438530,-500.0,0.00037674,15]
[340991658,1730219438540,-190.92744357,0.00037674,15]
[340991659,1730219438549,-167.47667256,0.00037674,15]
[340991660,1730219438557,-500.0,0.00037674,15]
[340991661,1730219438568,-10473.0335,0.00037675,2]
[340991662,1730219438578,-7431.33668198,0.0003787,2]
[340991663,1730219438588,-1445.358048,0.000379,2]
[340991664,1730219438598,-8500.0,0.000379,11]
[340991665,1730219438607,-4962.86074695,0.000379,3]
[340991667,1730219438617,-724.275,0.000379,2]
[340991669,1730219438626,-1620.94571182,0.000379,15]
[340991670,1730219438635,-19573.1728954,0.000379,2]
[340991672,1730219438645,-864.2488647,0.000379,2]
[340991673,1730219438655,-1166.37682412,0.000379,2]
[340991674,1730219438664,-439.1514948,0.000379,2]
[340991675,1730219438674,-159.89947647,0.00037973,5]
[340991676,1730219438684,-731.13723067,0.00037989,2]
[340991677,1730219438694,-93174.36041537,0.00037999,7]
[340991678,1730219438706,-5286.80000007,0.00037999,7]
[340991679,1730219438718,-12696.159648,0.00037999,7]
[340991680,1730219438727,-440.06100051,0.00037999,15]
[340991681,1730219438737,-312.05969332,0.00037999,15]
[340991682,1730219438746,-500.0,0.00037999,15]
[340991683,1730219438755,-445.49736834,0.00037999,15]
[340991684,1730219438764,-500.0,0.00037999,15]
[340991685,1730219438775,-500.0,0.00037999,15]
[340991686,1730219438787,-224.11223599,0.00037999,15]
[340991687,1730219438798,-500.0,0.00037999,15]
[340991688,1730219438809,-500.0,0.00037999,15]
[340991689,1730219438818,-16025.16005384,0.00038,30]
[340991690,1730219438856,-13449.48334717,0.00038,30]
[340991691,1730219438869,-33037.65712152,0.00038,30]
[340991692,1730219438881,-15970.07229556,0.00038,30]
[340991693,1730219438902,-85106.50137089,0.00038,30]
[340991710,1730219440063,-455.31606733,0.00038,30]
[340991717,1730219440122,-5402.6008344,0.00038,30]
[340991731,1730219440248,-0.06236632,0.0003789,10]
[340991737,1730219440295,-316.455936,0.0003789,10]
[340991739,1730219440307,-177.52169768,0.0003789,10]
[340991741,1730219440315,-1278.03730232,0.00038,30]
[340991743,1730219440326,-3635.565498,0.00038,30]
[340991748,1730219440365,-260572.47200773,0.00038,30]
[340991875,1730219443090,-1190.74072897,0.00038,30]
[340991876,1730219443102,-726.47,0.00038,30]
[340991877,1730219443113,-1993.45431722,0.00038,30]
[340991878,1730219443124,-448.0670428,0.00038,30]
[340991879,1730219443136,-3004.40517918,0.00038,30]
[340991880,1730219443261,-369.58,0.00037143,2]
[340991881,1730219443271,-91058.7812,0.00038,30]
[340991882,1730219443438,-6008.53889994,0.00038,30]
[340991883,1730219443450,-7255.316504,0.00038,30]
[340991901,1730219446070,-2902.32,0.00038,30]
[340991907,1730219446127,-402.10352557,0.00037973,5]
[340991908,1730219446137,-7738.13948975,0.00038,30]
[340991909,1730219446148,-22788.69819184,0.00038,30]
[340991910,1730219446161,-217872.44247497,0.00038,30]
[340991911,1730219446188,-21770.1619286,0.00038,30]
[340991912,1730219446199,-3628.72401526,0.00038,30]
[340991913,1730219446210,-3629.87,0.00038,30]
[340991914,1730219446436,-1280.09138471,0.00038,30]
[340992034,1730219460952,150.0,0.00017605,2]
[340992036,1730219473257,171.22,0.00015342,2]
[340992039,1730219673433,550.0,0.00015,2]
[340992040,1730219674575,600.0,0.00017,2]
[340992046,1730219726716,150.0,0.00017605,2]
[340992070,1730219988442,156.93,0.00015342,2]
[340992081,1730220398926,150.0,0.00020011,2]
[340992084,1730220547709,154.7,0.00015342,2]
[340992085,1730220555134,-242.0,0.000291,3]
[340992086,1730220555154,-193.24325,0.00029118,2]
[340992115,1730220632284,-150.0,0.00034548,10]
[340992117,1730220632294,-391.85,0.00034866,2]
[340992118,1730220632303,-361.02699298,0.00036457,2]
[340992119,1730220632395,-41.44298502,0.00036457,2]
[340992120,1730220632405,-250.0,0.0003664,120]
[340992121,1730220632414,-29.33248538,0.00036729,2]
[340992122,1730220632454,-582.78751462,0.00036729,2]
[340992123,1730220632463,-157.53868538,0.00036804,2]
[340992124,1730220632475,-64.49131462,0.00036804,2]
[340992125,1730220632484,-1727.45228553,0.00036804,2]
[340992126,1730220632512,-1370.46771447,0.00036804,2]
[340992127,1730220632522,-158.7,0.00036942,120]
[340992128,1730220632531,-150.0,0.00036987,7]
[340992129,1730220632541,-22654.14,0.00037049,2]
[340992130,1730220632550,-391.85,0.0003713,2]
[340992131,1730220632559,-250.0,0.00037361,2]
[340992132,1730220632570,-193.24325,0.00037435,2]
[340992133,1730220632579,-1000.0,0.00037447,2]
[340992134,1730220632589,-2416.4329174,0.00037451,30]
[340992135,1730220632598,-500.0,0.00037548,10]
[340992136,1730220632608,-171.83,0.00037617,120]
[340992137,1730220632617,-273.75849715,0.0003763,2]
[340992138,1730220632627,-217.9314,0.000379,2]
[340992139,1730220632636,-3025.6915,0.000379,120]